bitfinex-derivatives/quotes_BTCF0:USTF0_20210705
["timestamp","ask_amount","ask_price","bid_price","bid_amount"]
[1625453639833,3.39308542,34327.0,34321.0,0.00478599]
[1625453640033,0.48115088,34322.0,34321.0,0.00478599]
[1625453640135,0.76940088,34322.0,34321.0,0.00478599]
[1625453640385,0.76940088,34322.0,34320.0,0.00478602]
[1625453640636,1.26046595,34322.0,34320.0,0.00478602]
[1625453641188,0.76940088,34322.0,34320.0,0.51915119]
[1625453641287,0.54015088,34322.0,34320.0,0.51915119]
[1625453641486,0.54015088,34322.0,34321.0,0.00478585]
[1625453641986,0.54015088,34322.0,34320.0,0.00478581]
[1625453642187,0.54015088,34322.0,34320.0,0.51912246]
[1625453642488,0.54015088,34322.0,34321.0,0.00478584]
[1625453642839,5.67965088,34322.0,34321.0,0.00478584]
[1625453643844,5.67965088,34322.0,34320.0,0.00478615]
[1625453643946,5.96117088,34322.0,34320.0,0.00478615]
[1625453644044,6.45180001,34322.0,34319.0,0.24057544]
[1625453644445,1.31230001,34322.0,34319.0,0.24057544]
[1625453644646,0.82167088,34322.0,34319.0,0.24057544]
[1625453645146,0.82167088,34322.0,34319.0,0.29957544]
[1625453645248,0.54015088,34322.0,34319.0,0.29957544]
[1625453645595,0.54015088,34322.0,34319.0,0.24057544]
[1625453645745,0.54015088,34322.0,34319.0,0.75467514]
[1625453646246,1.03046369,34322.0,34319.0,0.24057544]
[1625453646345,1.31257369,34322.0,34319.0,0.24057544]
[1625453647900,0.82226088,34322.0,34319.0,0.24057544]
[1625453648756,0.08179077,34321.0,34319.0,0.24057544]
[1625453648856,0.14079077,34321.0,34319.0,0.24057544]
[1625453649255,0.08177295,34320.0,34319.0,0.24057544]
[1625453649755,0.08177295,34320.0,34319.0,0.24536198]
[1625453649957,0.08172709,34321.0,34319.0,0.24536198]
[1625453650056,0.14072709,34321.0,34319.0,0.24536198]
[1625453650257,0.14072709,34321.0,34320.0,0.00478658]
[1625453652414,0.14072709,34321.0,34316.0,0.00478673]
[1625453652514,0.14072709,34321.0,34316.0,0.06378673]
[1625453652617,0.14072709,34321.0,34317.0,0.0867]
[1625453652715,0.14072709,34321.0,34317.0,0.059]
[1625453652815,0.14072709,34321.0,34317.0,0.00478732]
[1625453652967,0.08164195,34319.0,34317.0,0.00478732]
[1625453653068,0.14064195,34319.0,34318.0,0.00478779]
[1625453653166,0.19964195,34319.0,34318.0,0.00478779]
[1625453653317,0.19964195,34319.0,34313.0,0.00478782]
[1625453653417,0.19964195,34319.0,34314.0,0.0884]
[1625453653570,1.25824336,34319.0,34314.0,0.0884]
[1625453653669,1.25824336,34319.0,34313.0,0.00478782]
[1625453653869,1.25824336,34319.0,34315.0,0.00478337]
[1625453654071,0.24057544,34316.0,34315.0,0.00478337]
[1625453654168,0.54015088,34316.0,34311.0,0.00478343]
[1625453654270,2.71096928,34316.0,34311.0,0.00478343]
[1625453654380,2.71096928,34316.0,34303.0,0.08544928]
[1625453654381,2.71096928,34316.0,34304.0,0.0885]
[1625453654570,2.65196928,34316.0,34304.0,0.0885]
[1625453654672,2.71096928,34316.0,34305.0,0.00478348]
[1625453654982,2.71096928,34316.0,34305.0,0.20233348]
[1625453655176,0.08135151,34312.0,34305.0,0.20233348]
[1625453655384,0.08135151,34312.0,34305.0,0.26133348]
[1625453655574,0.08135151,34312.0,34306.0,0.00478282]
[1625453655682,0.08135151,34312.0,34306.0,0.06378282]
[1625453655881,0.08144706,34315.0,34306.0,0.14923084]
[1625453655980,0.08144706,34315.0,34307.0,0.00478273]
[1625453656174,0.08144706,34315.0,34309.0,0.24057544]
[1625453656275,0.08144706,34315.0,34309.0,0.29957544]
[1625453656525,0.08144706,34315.0,34310.0,0.0047824]
[1625453656623,0.08144706,34315.0,34310.0,0.0637824]
[1625453656724,0.48115088,34316.0,34310.0,0.0637824]
[1625453657124,0.48115088,34316.0,34311.0,0.0047822]
[1625453657225,0.48115088,34316.0,34311.0,0.0637822]
[1625453657575,0.48115088,34316.0,34312.0,0.00478228]
[1625453657674,0.48115088,34316.0,34312.0,0.31413228]
[1625453657774,0.48115088,34316.0,34312.0,0.37313228]
[1625453657974,0.48115088,34316.0,34312.0,0.31413228]
[1625453658175,0.48115088,34316.0,34315.0,0.24057544]
[1625453658277,0.48115088,34316.0,34315.0,0.35857544]
[1625453658725,0.48115088,34316.0,34315.0,0.36335778]
[1625453659178,0.48115088,34316.0,34315.0,0.30435778]
[1625453659278,0.48115088,34316.0,34315.0,0.36335778]
[1625453661431,0.48115088,34316.0,34315.0,0.30435778]
[1625453661531,0.48115088,34316.0,34315.0,0.36335778]
[1625453661631,0.48115088,34316.0,34315.0,0.30435778]
[1625453661781,0.48115088,34316.0,34315.0,0.36335778]
[1625453663682,0.48115088,34316.0,34315.0,0.44879351]
[1625453665737,0.48115088,34316.0,34315.0,0.36335778]
[1625453666236,0.08160186,34324.0,34315.0,0.36335778]
[1625453666435,0.01070186,34324.0,34315.0,0.37198147]
[1625453666537,0.65167477,34326.0,34315.0,0.37198147]
[1625453666641,0.0817995,34329.0,34321.0,0.08547598]
[1625453666736,0.0817995,34329.0,34321.0,0.40079598]
[1625453667039,0.0817995,34329.0,34322.0,0.01338455]
[1625453667139,0.0817995,34329.0,34322.0,0.13138455]
[1625453667239,1.14559043,34333.0,34323.0,0.51281454]
[1625453667338,1.14559043,34333.0,34323.0,0.57181454]
[1625453667440,1.14559043,34333.0,34323.0,0.63081454]
[1625453667541,1.14559043,34333.0,34328.0,0.04]
[1625453667641,1.14559043,34333.0,34328.0,0.32073]
[1625453667740,1.14559043,34333.0,34328.0,0.37973]
[1625453667942,1.14559043,34333.0,34329.0,0.00473846]
[1625453668040,1.14559043,34333.0,34329.0,0.12273846]
[1625453668143,0.49065214,34334.0,34329.0,0.12273846]
[1625453668243,0.49065214,34334.0,34332.0,0.72172632]
[1625453668344,0.49065214,34334.0,34332.0,0.78072632]
[1625453668552,0.49065214,34334.0,34332.0,0.83972632]
[1625453668642,0.49065214,34334.0,34333.0,0.04]
[1625453668743,0.49065214,34334.0,34333.0,0.10373836]
[1625453668843,0.49065214,34334.0,34333.0,0.16273836]
[1625453669042,0.49065214,34334.0,34333.0,0.12273836]
[1625453669260,1.30840335,34339.0,34333.0,0.12273836]
[1625453669261,1.14591604,34337.0,34333.0,0.12273836]
[1625453669646,1.14591604,34337.0,34336.0,0.04]
[1625453669748,1.14591604,34337.0,34336.0,0.27518]
[1625453669848,0.49130035,34338.0,34336.0,0.33418]
[1625453670054,0.49130035,34338.0,34336.0,0.33891815]
[1625453670254,1.14646298,34338.0,34337.0,0.24057544]
[1625453670348,1.14646298,34338.0,34337.0,0.30431368]
[1625453670647,2.12896983,34338.0,34337.0,0.30431368]
[1625453670897,2.12896983,34338.0,34337.0,0.34431368]
[1625453671149,0.49130035,34338.0,34337.0,0.34431368]
[1625453671449,1.14657228,34338.0,34337.0,0.34431368]
[1625453672248,1.14657228,34338.0,34337.0,0.65698912]
[1625453672500,1.14657228,34338.0,34337.0,0.72908912]
[1625453672751,1.14657228,34338.0,34337.0,0.81598912]
[1625453672852,1.14657228,34338.0,34337.0,0.72908912]
[1625453673205,2.12923176,34338.0,34337.0,0.72908912]
[1625453673954,2.12923176,34338.0,34337.0,0.67008912]
[1625453674358,2.12923176,34338.0,34337.0,0.66535088]
[1625453674465,2.12923176,34338.0,34337.0,0.98132088]
[1625453674562,2.12923176,34338.0,34337.0,0.98605506]
[1625453674762,2.12923176,34338.0,34337.0,1.04505506]
[1625453675258,1.14629451,34339.0,34337.0,1.04505506]
[1625453675259,1.14772899,34339.0,34337.0,1.04505506]
[1625453675708,1.14772899,34339.0,34337.0,1.00505506]
[1625453675807,1.14772899,34339.0,34338.0,0.00473373]
[1625453675909,0.49190727,34339.0,34338.0,0.06373373]
[1625453676359,0.49190727,34339.0,34338.0,0.10373373]
[1625453676458,1.14786607,34339.0,34338.0,0.10373373]
[1625453677160,2.62317941,34371.0,34338.0,0.10373373]
[1625453677259,0.29957544,34346.0,34338.0,0.10373373]
[1625453677511,0.29957544,34346.0,34338.0,0.06373373]
[1625453677611,0.29957544,34346.0,34339.0,0.00473354]
[1625453677713,0.29957544,34346.0,34339.0,0.06373354]
[1625453678064,0.49243261,34341.0,34339.0,0.06373354]
[1625453678164,0.49243261,34341.0,34339.0,0.059]
[1625453678262,0.55143261,34341.0,34339.0,0.059]
[1625453678612,0.49243261,34341.0,34339.0,0.059]
[1625453678712,0.49243261,34341.0,34340.0,0.00473326]
[1625453678814,0.49243261,34341.0,34340.0,0.12273326]
[1625453678913,0.49243261,34341.0,34340.0,0.16273326]
[1625453679215,0.49300892,34345.0,34340.0,0.16273326]
[1625453679516,0.49300892,34345.0,34341.0,0.0047329]
[1625453679615,0.49300892,34345.0,34341.0,0.1227329]
[1625453680014,0.49300892,34345.0,34341.0,0.118]
[1625453680315,0.49300892,34345.0,34344.0,0.04]
[1625453680416,0.49300892,34345.0,34344.0,0.39923]
[1625453680819,1.15032658,34345.0,34344.0,0.39923]
[1625453681567,1.15032658,34345.0,34344.0,0.099]
[1625453681668,2.1358008,34345.0,34344.0,0.099]
[1625453682620,3.28479751,34345.0,34344.0,0.099]
[1625453682922,2.1358008,34345.0,34344.0,0.099]
[1625453685681,0.9975,34350.0,34344.0,0.099]
[1625453685780,1.0565,34350.0,34344.0,0.099]
[1625453686183,1.14821173,34345.0,34344.0,0.059]
[1625453686284,1.37708173,34345.0,34337.0,0.1442]
[1625453686382,1.37708173,34345.0,34337.0,0.2622]
[1625453686482,1.37708173,34345.0,34337.0,0.2032]
[1625453686634,0.49183822,34342.0,34337.0,0.2622]
[1625453686733,0.49183822,34342.0,34337.0,0.3484]
[1625453686833,0.49183822,34342.0,34338.0,0.00473162]
[1625453686933,0.49183822,34342.0,34338.0,0.06373162]
[1625453687333,0.49183822,34342.0,34338.0,0.059]
[1625453687534,0.49183822,34342.0,34341.0,0.099]
[1625453687886,0.49183822,34342.0,34341.0,0.82072632]
[1625453688092,0.98295381,34342.0,34341.0,0.82072632]
[1625453688585,2.12959697,34342.0,34341.0,0.82072632]
[1625453688885,2.12959697,34342.0,34341.0,0.8254579]
[1625453688985,0.49144189,34342.0,34341.0,0.8254579]
[1625453689186,0.49144189,34342.0,34341.0,0.8844579]
[1625453689537,0.49188329,34343.0,34341.0,0.8844579]
[1625453689887,0.49188329,34343.0,34341.0,0.06373158]
[1625453689990,1.14762021,34344.0,34342.0,0.00473142]
[1625453690088,1.14762021,34344.0,34342.0,0.06373142]
[1625453690287,0.49170915,34343.0,34342.0,0.06373142]
[1625453690386,0.70798915,34343.0,34342.0,0.78545774]
[1625453690588,0.70798915,34343.0,34342.0,0.78072632]
[1625453690788,0.70798915,34343.0,34342.0,0.72645783]
[1625453690890,0.70798915,34343.0,34342.0,0.78545783]
[1625453691288,0.70798915,34343.0,34342.0,0.82545783]
[1625453691289,2.3457255,34343.0,34342.0,0.82545783]
[1625453692444,2.3457255,34343.0,34342.0,0.10373151]
[1625453692897,2.3457255,34343.0,34342.0,0.76645783]
[1625453692998,1.36311644,34343.0,34342.0,0.76645783]
[1625453693197,2.34703139,34343.0,34342.0,0.76645783]
[1625453693399,2.34703139,34343.0,34342.0,0.82545783]
[1625453694909,1.36311644,34343.0,34342.0,0.10373151]
[1625453695454,1.36311644,34343.0,34342.0,0.82545783]
[1625453695702,2.34697463,34343.0,34342.0,0.82545783]
[1625453696654,1.36311644,34343.0,34342.0,0.82545783]
[1625453697155,1.36311644,34343.0,34342.0,0.88445783]
[1625453697256,1.14683644,34343.0,34342.0,0.88445783]
[1625453697406,0.49170915,34343.0,34342.0,0.88445783]
[1625453697505,0.49170915,34343.0,34342.0,0.16273151]
[1625453697809,1.14832983,34344.0,34342.0,0.16273151]
[1625453697956,1.14832983,34344.0,34343.0,0.96230176]
[1625453698056,1.14832983,34344.0,34343.0,1.08030176]
[1625453698156,1.14832983,34344.0,34343.0,1.08503599]
[1625453698358,1.1486925,34345.0,34343.0,1.08503599]
[1625453698609,0.49232022,34345.0,34343.0,1.08503599]
[1625453698709,0.49232022,34345.0,34344.0,0.06373418]
[1625453698909,0.49232022,34345.0,34344.0,0.10373418]
[1625453699010,1.14939935,34345.0,34344.0,0.10373418]
[1625453700464,1.14939935,34345.0,34344.0,1.06603594]
[1625453700914,2.13621729,34345.0,34344.0,1.06603594]
[1625453702517,2.13621729,34345.0,34344.0,0.10373418]
[1625453702971,2.13621729,34345.0,34344.0,1.06603594]
[1625453703121,0.98681794,34345.0,34344.0,1.06603594]
[1625453703219,2.13793811,34345.0,34344.0,1.06603594]
[1625453704976,2.13793811,34345.0,34344.0,0.10373418]
[1625453705124,1.15112017,34345.0,34344.0,0.10373418]
[1625453705475,1.15112017,34345.0,34344.0,1.06603594]
[1625453705573,1.15112017,34345.0,34344.0,1.06130176]
[1625453705773,1.15112017,34345.0,34344.0,1.06600398]
[1625453706726,2.13735896,34345.0,34344.0,1.06600398]
[1625453707532,2.13735896,34345.0,34344.0,0.10370222]
[1625453707983,2.13735896,34345.0,34344.0,1.06600398]
[1625453708081,1.15112017,34345.0,34344.0,1.06600398]
[1625453710035,1.15112017,34345.0,34344.0,0.10370222]
[1625453710136,1.47659017,34345.0,34344.0,0.10370222]
[1625453710538,1.47659017,34345.0,34344.0,1.06600398]
[1625453710838,0.8188307,34345.0,34344.0,1.06600398]
[1625453711186,1.4764687,34345.0,34344.0,1.06600398]
[1625453713641,1.4764687,34345.0,34344.0,1.00700398]
[1625453713740,1.5354687,34345.0,34344.0,1.00700398]
[1625453713989,1.5354687,34345.0,34337.0,0.2308]
[1625453714089,1.5944687,34345.0,34337.0,0.1442]
[1625453714295,0.01364596,34344.0,34338.0,0.00469782]
[1625453714492,0.07264596,34344.0,34338.0,0.00469782]
[1625453714590,0.72172632,34339.0,34338.0,0.00469782]
[1625453714691,0.83972632,34339.0,34338.0,0.00469782]
[1625453714892,2.47955154,34339.0,34338.0,0.00469782]
[1625453714991,5.43113855,34339.0,34338.0,0.00469782]
[1625453715090,5.44478664,34339.0,34338.0,0.00469782]
[1625453715394,6.91915815,34339.0,34338.0,0.00469782]
[1625453715940,6.91915815,34339.0,34338.0,0.04469782]
[1625453716741,6.91915815,34339.0,34319.0,0.51363153]
[1625453716840,6.90551006,34339.0,34319.0,0.51363153]
[1625453717041,7.686449,34338.0,34317.0,1.19851204]
[1625453717140,8.097099,34338.0,34329.0,0.00469384]
[1625453717441,4.58028768,34330.0,34329.0,0.00469384]
[1625453717541,4.94168768,34330.0,34329.0,0.00469384]
[1625453717641,3.63310415,34330.0,34329.0,0.00469384]
[1625453718292,3.63310415,34330.0,34320.0,0.00469373]
[1625453718492,3.63310415,34330.0,34329.0,0.00469379]
[1625453718594,4.35483047,34330.0,34329.0,0.00469379]
[1625453718793,0.49059667,34325.0,34320.0,0.00469376]
[1625453718994,0.54959667,34325.0,34320.0,0.06369376]
[1625453719196,0.54959667,34325.0,34321.0,0.0867]
[1625453719298,1.14485171,34326.0,34321.0,0.46325]
[1625453719397,1.14485171,34326.0,34321.0,0.46794344]
[1625453719496,1.14485171,34326.0,34324.0,4.3405]
[1625453719596,1.14485171,34326.0,34324.0,4.4585]
[1625453719695,0.72172632,34330.0,34325.0,0.51371432]
[1625453719802,0.72172632,34330.0,34325.0,0.63171432]
[1625453719898,0.72172632,34330.0,34325.0,0.63640721]
[1625453720102,0.72172632,34330.0,34326.0,0.51399717]
[1625453720197,0.72172632,34330.0,34326.0,0.63668999]
[1625453720500,0.72172632,34330.0,34327.0,0.00469278]
[1625453720596,0.72172632,34330.0,34327.0,0.06369278]
[1625453721000,0.72172632,34330.0,34328.0,0.00469268]
[1625453721104,0.72172632,34330.0,34328.0,0.34608268]
[1625453721299,0.72172632,34330.0,34328.0,0.28708268]
[1625453721599,0.72172632,34330.0,34329.0,0.00469286]
[1625453721850,1.87009524,34330.0,34329.0,0.00469286]
[1625453721951,1.92909524,34330.0,34329.0,0.00469286]
[1625453722052,1.87009524,34330.0,34329.0,0.00469286]
[1625453722150,1.92909524,34330.0,34327.0,0.00469953]
[1625453722250,2.85396928,34330.0,34327.0,0.00469953]
[1625453722551,2.91296928,34330.0,34327.0,0.00469953]
[1625453722701,2.91296928,34330.0,34326.0,0.00469971]
[1625453722802,0.65582079,34329.0,34326.0,0.00469971]
[1625453722901,0.49190657,34328.0,34326.0,0.00469971]
[1625453723255,0.4917653,34327.0,34326.0,0.00469971]
[1625453723353,0.7464553,34327.0,34326.0,0.00469971]
[1625453723553,0.7464553,34327.0,34325.0,0.00470001]
[1625453723655,1.40196085,34327.0,34325.0,0.00470001]
[1625453723753,1.46096085,34327.0,34325.0,0.00470001]
[1625453723854,1.46096085,34327.0,34326.0,0.00469984]
[1625453723953,1.02819555,34327.0,34326.0,0.00469984]
[1625453724356,1.02819555,34327.0,34324.0,0.00470051]
[1625453724555,0.48115088,34325.0,34324.0,0.00470051]
[1625453724654,0.54015088,34325.0,34324.0,0.00470051]
[1625453724855,0.59915088,34325.0,34319.0,0.00470063]
[1625453725155,3.87238377,34325.0,34319.0,0.00470063]
[1625453725455,0.49097763,34321.0,34319.0,0.00470063]
[1625453725556,0.54997763,34321.0,34319.0,0.00470063]
[1625453725908,0.60897763,34321.0,34319.0,0.00470063]
[1625453726209,2.12551029,34320.0,34318.0,0.00470092]
[1625453726311,2.40698029,34320.0,34318.0,0.00470092]
[1625453726410,2.46598029,34320.0,34318.0,0.00470092]
[1625453726512,2.46598029,34320.0,34316.0,0.00470096]
[1625453726610,0.72172632,34317.0,34316.0,0.00470096]
[1625453726712,0.78072632,34317.0,34314.0,0.51462147]
[1625453727012,0.65349796,34316.0,34315.0,0.00470121]
[1625453727111,0.71249796,34316.0,34315.0,0.00470121]
[1625453727311,1.20267859,34316.0,34313.0,0.00470121]
[1625453727513,1.26167859,34316.0,34315.0,0.00470117]
[1625453727714,0.60818063,34316.0,34315.0,0.00470117]
[1625453727815,0.54918063,34316.0,34313.0,0.00470119]
[1625453728016,0.059,34316.0,34313.0,0.00470119]
[1625453728114,0.059,34316.0,34312.0,0.00470093]
[1625453728317,0.059,34316.0,34314.0,0.00470089]
[1625453728417,0.059,34316.0,34314.0,0.75428096]
[1625453728615,0.24057544,34315.0,34314.0,0.74958007]
[1625453728818,0.24057544,34315.0,34314.0,0.92095149]
[1625453729121,0.24057544,34315.0,34314.0,0.92565228]
[1625453729218,0.24057544,34315.0,34314.0,2.46799752]
[1625453729468,0.24057544,34315.0,34314.0,1.43976736]
[1625453730069,0.24057544,34315.0,34314.0,1.49876736]
[1625453731527,0.24057544,34315.0,34314.0,1.43976736]
[1625453731873,0.24057544,34315.0,34314.0,0.24014079]
[1625453732073,0.29957544,34315.0,34314.0,0.00470079]
[1625453732422,0.24057544,34315.0,34314.0,0.00470079]
[1625453732775,0.24057544,34315.0,34313.0,0.00470105]
[1625453734381,0.24057544,34315.0,34312.0,0.00469846]
[1625453734682,0.24057544,34315.0,34312.0,0.06369846]
[1625453734882,0.24057544,34315.0,34312.0,0.12269846]
[1625453734981,0.24057544,34315.0,34313.0,0.00469826]
[1625453735081,0.24057544,34315.0,34313.0,0.06369826]
[1625453735281,0.24057544,34315.0,34313.0,0.00469826]
[1625453735481,0.24057544,34315.0,34314.0,0.00469826]
[1625453735985,0.24057544,34315.0,34313.0,0.51797818]
[1625453736286,0.24057544,34315.0,34314.0,0.00469845]
[1625453736635,0.24057544,34315.0,34312.0,0.00469834]
[1625453736735,0.24057544,34315.0,34312.0,0.06369834]
[1625453736933,0.24057544,34315.0,34312.0,0.00469834]
[1625453737034,0.24057544,34315.0,34312.0,0.51779621]
[1625453737136,0.24057544,34315.0,34313.0,0.00469842]
[1625453738238,0.24057544,34315.0,34311.0,0.00469842]
[1625453738439,0.24057544,34315.0,34311.0,0.06369842]
[1625453738654,0.24057544,34312.0,34311.0,0.06369842]
[1625453738756,0.24057544,34312.0,34311.0,0.118]
[1625453738853,0.24057544,34312.0,34311.0,0.80192522]
[1625453739045,0.24057544,34312.0,34311.0,0.80662306]
[1625453739240,0.24057544,34315.0,34311.0,0.80662306]
[1625453739341,0.48115088,34317.0,34311.0,0.80662306]
[1625453739342,0.48115088,34317.0,34312.0,0.0872]
[1625453739441,0.48115088,34317.0,34312.0,0.2052]
[1625453739544,0.48115088,34317.0,34312.0,0.20989778]
[1625453739842,0.48115088,34317.0,34313.0,0.0046977]
[1625453739943,0.48115088,34317.0,34313.0,0.0636977]
[1625453740044,0.48115088,34317.0,34313.0,0.1226977]
[1625453740143,0.48115088,34317.0,34315.0,1.1967616]
[1625453740344,0.48115088,34317.0,34315.0,1.2557616]
[1625453740694,0.48115088,34317.0,34316.0,0.30427316]
[1625453741145,0.48115088,34317.0,34316.0,0.24527316]
[1625453741346,0.48115088,34317.0,34316.0,0.30427316]
[1625453741846,0.48115088,34317.0,34316.0,0.52012316]
[1625453742196,0.48115088,34317.0,34316.0,0.57912316]
[1625453742397,0.48115088,34317.0,34316.0,0.66742316]
[1625453742948,0.48115088,34317.0,34316.0,0.60842316]
[1625453743451,0.48115088,34317.0,34316.0,0.66742316]
[1625453743551,0.97724683,34327.0,34316.0,0.60842316]
[1625453743652,0.97724683,34327.0,34317.0,0.0868]
[1625453743762,0.97724683,34327.0,34317.0,0.7048]
[1625453743863,0.97724683,34327.0,34317.0,0.71342317]
[1625453743952,0.93724683,34327.0,34318.0,0.01054156]
[1625453744053,0.93724683,34327.0,34318.0,0.06954156]
[1625453744150,0.92724683,34327.0,34318.0,0.12854156]
[1625453744250,0.92724683,34327.0,34326.0,5.2341]
[1625453744353,0.92724683,34327.0,34326.0,5.55196]
[1625453744452,0.98043699,34338.0,34326.0,5.55196]
[1625453744654,0.98043699,34338.0,34326.0,5.65096]
[1625453744754,0.98043699,34338.0,34337.0,0.96230176]
[1625453744854,0.98043699,34338.0,34337.0,1.21943176]
[1625453745055,1.14487624,34343.0,34337.0,1.21943176]
[1625453745156,1.14487624,34343.0,34337.0,1.33743176]
[1625453745505,1.14562555,34345.0,34337.0,1.33743176]
[1625453745606,1.14562555,34345.0,34338.0,0.00469338]
[1625453745705,1.14562555,34345.0,34338.0,0.06369338]
[1625453745806,1.14562555,34345.0,34342.0,0.04]
[1625453745907,1.14611682,34346.0,34342.0,0.04]
[1625453746109,1.20511682,34346.0,34343.0,0.00469318]
[1625453746208,1.14611682,34346.0,34343.0,0.00469318]
[1625453746509,1.14611682,34346.0,34338.0,0.00469318]
[1625453746607,1.14611682,34346.0,34338.0,0.06369318]
[1625453746707,1.14611682,34346.0,34345.0,0.48115088]
[1625453746807,1.14611682,34346.0,34345.0,0.70777088]
[1625453746908,0.24057544,34347.0,34345.0,0.70777088]
[1625453747009,0.24057544,34347.0,34345.0,0.71246392]
[1625453747208,1.14675405,34348.0,34345.0,0.71246392]
[1625453747308,1.20575405,34348.0,34346.0,0.00469301]
[1625453748309,0.059,34348.0,34346.0,0.00469301]
[1625453748559,0.059,34348.0,34346.0,0.06369301]
[1625453748761,0.059,34348.0,34347.0,0.24057544]
[1625453748862,1.20596706,34348.0,34347.0,0.29957544]
[1625453749363,0.059,34348.0,34347.0,0.29957544]
[1625453750516,0.059,34348.0,34347.0,0.24057544]
[1625453750967,0.059,34348.0,34347.0,0.29957544]
[1625453751067,1.20587498,34348.0,34347.0,0.60693544]
[1625453751520,0.059,34348.0,34347.0,0.60693544]
[1625453753625,0.059,34348.0,34347.0,0.67643544]
[1625453754781,0.059,34348.0,34347.0,0.91701088]
[1625453755032,0.38710307,34348.0,34347.0,0.91701088]
[1625453755533,0.059,34348.0,34347.0,0.91701088]
[1625453755632,1.14795083,34352.0,34347.0,0.91701088]
[1625453755848,1.14795083,34352.0,34347.0,0.95701088]
[1625453755937,1.14795083,34352.0,34347.0,1.01601088]
[1625453756186,1.14795083,34352.0,34347.0,0.97601088]
[1625453756288,0.32863357,34351.0,34347.0,0.97601088]
[1625453756836,0.32896625,34352.0,34350.0,0.33957544]
[1625453756936,0.32896625,34352.0,34350.0,0.39857544]
[1625453757336,0.057,34365.0,34350.0,0.39857544]
[1625453757337,0.32906751,34353.0,34350.0,0.39857544]
[1625453757639,0.32906751,34353.0,34350.0,0.35857544]
[1625453757939,0.32906751,34353.0,34351.0,0.0871]
[1625453758039,0.32906751,34353.0,34351.0,0.1461]
[1625453758139,0.32906751,34353.0,34351.0,0.2051]
[1625453758489,0.32906751,34353.0,34352.0,0.04]
[1625453758593,0.32906751,34353.0,34352.0,0.099]
[1625453758689,0.32906751,34353.0,34352.0,0.158]
[1625453758793,0.32906751,34353.0,34352.0,0.39857544]
[1625453759390,0.32906751,34353.0,34352.0,0.33957544]
[1625453759490,0.32906751,34353.0,34352.0,0.28057544]
[1625453759742,1.15142974,34356.0,34352.0,0.28057544]
[1625453760143,1.15142974,34356.0,34352.0,0.24057544]
[1625453760347,1.15142974,34356.0,34352.0,0.29957544]
[1625453760446,1.15047642,34354.0,34352.0,0.29957544]
[1625453760844,1.15047642,34354.0,34353.0,0.24057544]
[1625453760942,0.057,34368.0,34353.0,0.35857544]
[1625453760943,1.15074003,34357.0,34353.0,0.35857544]
[1625453761544,1.15074003,34357.0,34356.0,0.04]
[1625453761644,1.15074003,34357.0,34356.0,0.099]
[1625453761848,1.15080017,34358.0,34356.0,0.099]
[1625453762148,1.15080017,34358.0,34356.0,0.158]
[1625453762398,1.15081742,34359.0,34356.0,0.118]
[1625453762698,0.32912746,34357.0,34356.0,0.118]
[1625453762798,0.32912746,34357.0,34356.0,0.35857544]
[1625453763697,0.32912746,34357.0,34356.0,0.39857544]
[1625453764448,0.32887401,34358.0,34356.0,0.39857544]
[1625453764799,0.32887401,34358.0,34357.0,0.24057544]
[1625453764898,0.32887401,34358.0,34357.0,0.29957544]
[1625453765103,0.32887401,34358.0,34357.0,0.35857544]
[1625453765501,0.32887401,34358.0,34357.0,0.39857544]
[1625453765600,0.32887401,34358.0,34357.0,0.48607544]
[1625453765702,0.32887401,34358.0,34357.0,5.06827544]
[1625453765802,0.32912407,34359.0,34357.0,5.06827544]
[1625453766254,0.32912407,34359.0,34357.0,5.02827544]
[1625453766807,0.32919262,34360.0,34357.0,5.02827544]
[1625453766911,0.32919262,34360.0,34358.0,0.29957544]
[1625453767011,0.32919262,34360.0,34358.0,0.39857544]
[1625453767210,0.32919262,34360.0,34358.0,0.33957544]
[1625453767408,2.5437722,34387.0,34358.0,0.29957544]
[1625453767409,0.32922313,34361.0,34358.0,0.29957544]
[1625453768261,0.32922313,34361.0,34360.0,0.04]
[1625453768362,1.48092823,34370.0,34360.0,0.04]
[1625453768461,1.59892823,34370.0,34360.0,0.04]
[1625453768813,1.15107855,34365.0,34360.0,0.04]
[1625453768914,1.15107855,34365.0,34358.0,0.24057544]
[1625453769012,1.15107855,34365.0,34358.0,0.35857544]
[1625453769262,0.32900099,34360.0,34358.0,0.35857544]
[1625453769662,0.32900099,34360.0,34359.0,0.04]
[1625453769761,0.32900099,34360.0,34359.0,0.099]
[1625453770163,0.32897095,34361.0,34359.0,0.099]
[1625453770514,0.32897095,34361.0,34359.0,0.33118]
[1625453770613,0.32897095,34361.0,34359.0,0.29118]
[1625453770814,0.32897095,34361.0,34360.0,0.72172632]
[1625453770915,0.32897095,34361.0,34360.0,0.78072632]
[1625453771014,0.32897095,34361.0,34360.0,0.83972632]
[1625453771215,0.32886717,34362.0,34360.0,0.83972632]
[1625453771566,0.32886717,34362.0,34360.0,0.87972632]
[1625453771920,0.32886717,34362.0,34360.0,0.83972632]
[1625453772118,0.32883082,34363.0,34360.0,0.83972632]
[1625453772618,0.32883082,34363.0,34362.0,0.099]
[1625453772720,0.32883082,34363.0,34362.0,0.158]
[1625453772922,0.32881589,34364.0,34362.0,0.158]
[1625453773171,0.32881589,34364.0,34363.0,0.00469052]
[1625453773272,1.1504907,34367.0,34363.0,0.12269052]
[1625453773471,1.1504907,34367.0,34363.0,0.118]
[1625453773571,1.1504907,34367.0,34363.0,0.059]
[1625453773673,1.1498096,34366.0,34363.0,0.059]
[1625453774275,1.1498096,34366.0,34365.0,0.04]
[1625453774376,1.1498096,34366.0,34365.0,0.099]
[1625453774778,2.1350299,34366.0,34365.0,0.099]
[1625453774877,2.1350299,34366.0,34365.0,0.58015088]
[1625453775279,0.9852203,34366.0,34365.0,0.58015088]
[1625453775781,1.47820385,34372.0,34365.0,0.86093088]
[1625453775880,1.47820385,34372.0,34365.0,0.92462549]
[1625453775979,1.47820385,34372.0,34365.0,1.01192549]
[1625453776080,1.47820385,34372.0,34366.0,0.00469312]
[1625453776181,1.47820385,34372.0,34366.0,0.06369312]
[1625453776281,0.61365972,34372.0,34366.0,0.49809112]
[1625453776382,0.61365972,34372.0,34366.0,1.05709112]
[1625453776483,1.63636428,34377.0,34366.0,1.05709112]
[1625453776582,0.49459434,34376.0,34366.0,1.05709112]
[1625453776681,0.49459434,34376.0,34367.0,0.00469246]
[1625453776780,0.1649197,34376.0,34367.0,0.12269246]
[1625453776881,0.1649197,34376.0,34375.0,0.72172632]
[1625453776981,0.1649197,34376.0,34375.0,5.08591632]
[1625453777181,0.1649197,34376.0,34375.0,5.13060846]
[1625453777582,0.16506212,34382.0,34375.0,5.13060846]
[1625453777681,0.16506212,34382.0,34375.0,5.63060846]
[1625453777883,0.12506212,34382.0,34375.0,5.63060846]
[1625453777998,0.12506212,34382.0,34376.0,0.0046914]
[1625453778092,0.49537604,34386.0,34376.0,0.0636914]
[1625453778188,0.49537604,34386.0,34376.0,0.1226914]